[Event "Open Nuevo Centro. Jornada 2"]
[Site "Chess.com"]
[Date "2020.06.26"]
[Round "5"]
[White "García Giménez, Santiago"]
[Black "Marín Corresa, Arturo"]
[Result "1-0"]
[WhiteElo "2138"]
[BlackElo "2195"]
[TimeControl "180+2"]
[EndTime "11:21:29 PDT"]
[Termination "Victoria de Somaelfideitos por abandono"]

1. e4 {[%clk 0:03:01.9]} 1... c5 {[%clk 0:02:59.8]} 2. Nf3 {[%clk 0:03:02.4]}
2... Nc6 {[%clk 0:03:00.4]} 3. Bb5 {[%clk 0:03:03.1]} 3... g6 {[%clk 0:03:00.6]}
4. O-O {[%clk 0:03:01.4]} 4... Bg7 {[%clk 0:03:01.2]} 5. c3 {[%clk 0:03:02.7]}
5... e5 {[%clk 0:02:56.7]} 6. d4 {[%clk 0:03:03]} 6... cxd4 {[%clk 0:02:55.1]}
7. cxd4 {[%clk 0:03:03.5]} 7... exd4 {[%clk 0:02:48.1]} 8. Bf4 {[%clk
0:03:03.6]} 8... Nge7 {[%clk 0:02:40.6]} 9. Bd6 {[%clk 0:03:03.1]} 9... O-O
{[%clk 0:02:41.1]} 10. Nbd2 {[%clk 0:03:02.9]} 10... a6 {[%clk 0:02:37]} 11. Qa4
{[%clk 0:03:02.5]} 11... Re8 {[%clk 0:02:32.7]} 12. Bc4 {[%clk 0:02:53.6]} 12...
Ra7 {[%clk 0:02:14.3]} 13. Bxf7+ {[%clk 0:02:34.9]} 13... Kxf7 {[%clk 0:02:14]}
14. Qb3+ {[%clk 0:02:35.2]} 14... Kf6 {[%clk 0:02:12.9]} 15. e5+ {[%clk
0:02:29]} 15... Kf5 {[%clk 0:02:01.5]} 16. Qf7+ {[%clk 0:02:23.3]} 16... Kg4
{[%clk 0:01:55.3]} 17. Qxg7 {[%clk 0:02:21.8]} 17... Nf5 {[%clk 0:01:21.5]} 18.
h3+ {[%clk 0:02:20.9]} 18... Kf4 {[%clk 0:01:15.1]} 19. g3+ {[%clk 0:02:20.4]}
19... Nxg3 {[%clk 0:01:15.3]} 20. e6+ {[%clk 0:02:15.4]} 20... Kf5 {[%clk
0:01:11.6]} 21. Bxg3 {[%clk 0:02:11.5]} 21... dxe6 {[%clk 0:01:08.1]} 22. Nh4+
{[%clk 0:02:02.8]} 22... Kg5 {[%clk 0:01:07.6]} 23. Ne4+ {[%clk 0:01:59]} 1

[Event "Open Nuevo Centro. Jornada 2"]
[Site "Chess.com"]
[Date "2020.06.26"]
[Round "5"]
[White "Bosch Jordà, Ricard"]
[Black "Colomer Martinez, Isabel"]
[Result "1-0"]
[WhiteElo "1762"]
[BlackElo "1379"]
[TimeControl "180+2"]
[EndTime "11:21:43 PDT"]
[Termination "Victoria de UltimateLimo por abandono"]

1. e4 {[%clk 0:03:01.9]} 1... e5 {[%clk 0:03:00.3]} 2. Nf3 {[%clk 0:03:01.8]}
2... Nc6 {[%clk 0:03:00.3]} 3. Bb5 {[%clk 0:02:57.8]} 3... Nf6 {[%clk
0:02:56.1]} 4. O-O {[%clk 0:02:56.5]} 4... Nxe4 {[%clk 0:02:55]} 5. d4 {[%clk
0:02:56.4]} 5... exd4 {[%clk 0:02:52.5]} 6. Re1 {[%clk 0:02:52.3]} 6... d5
{[%clk 0:02:44.9]} 7. Nxd4 {[%clk 0:02:51.2]} 7... Bd7 {[%clk 0:02:38.3]} 8. f3
{[%clk 0:02:47.5]} 8... Nxd4 {[%clk 0:02:33.2]} 9. Bxd7+ {[%clk 0:02:44.4]} 9...
Qxd7 {[%clk 0:02:31.6]} 10. Qxd4 {[%clk 0:02:38.7]} 10... Bc5 {[%clk 0:02:23.7]}
11. Qxc5 {[%clk 0:02:38.3]} 11... b6 {[%clk 0:02:16.5]} 12. Qd4 {[%clk
0:02:33.8]} 12... c5 {[%clk 0:02:12.1]} 13. Rxe4+ {[%clk 0:02:23.7]} 13... dxe4
{[%clk 0:02:10.6]} 14. Qxe4+ {[%clk 0:02:23.9]} 14... Qe7 {[%clk 0:01:58.7]} 15.
Qxa8+ {[%clk 0:02:22.4]} 15... Qd8 {[%clk 0:01:57.1]} 16. Qxd8+ {[%clk
0:02:22.7]} 16... Kxd8 {[%clk 0:01:55.5]} 17. Nc3 {[%clk 0:02:23.7]} 17... h5
{[%clk 0:01:48.9]} 18. Bf4 {[%clk 0:02:23]} 18... Rg8 {[%clk 0:01:45.1]} 19.
Rd1+ {[%clk 0:02:22.5]} 19... Ke7 {[%clk 0:01:44.5]} 20. Nd5+ {[%clk 0:02:21.8]}
20... Ke6 {[%clk 0:01:44]} 21. c4 {[%clk 0:02:20.7]} 21... g5 {[%clk 0:01:42.2]}
22. Be3 {[%clk 0:02:09.1]} 22... g4 {[%clk 0:01:39.4]} 23. fxg4 {[%clk
0:02:07.7]} 23... Rxg4 {[%clk 0:01:39.2]} 24. Nf4+ {[%clk 0:02:07.7]} 24... Kf5
{[%clk 0:01:37.9]} 25. Nxh5 {[%clk 0:02:05]} 25... Ke4 {[%clk 0:01:31.7]} 26.
Bc1 {[%clk 0:02:02.9]} 26... Rh4 {[%clk 0:01:23]} 27. Nf6+ {[%clk 0:01:55.7]}
27... Kf5 {[%clk 0:01:18.6]} 28. Rd5+ {[%clk 0:01:56.3]} 28... Kxf6 {[%clk
0:01:17]} 29. Bg5+ {[%clk 0:01:57.1]} 29... Ke6 {[%clk 0:01:15]} 30. Bxh4 {[%clk
0:01:57.6]} 1

[Event "Open Nuevo Centro. Jornada 2"]
[Site "Chess.com"]
[Date "2020.06.26"]
[Round "5"]
[White "Yatseta Fernandez, Marc Kazymyr"]
[Black "Beneyto de Ramon, Guillermo"]
[Result "1-0"]
[WhiteElo "1464"]
[BlackElo "1506"]
[TimeControl "180+2"]
[EndTime "11:21:48 PDT"]
[Termination "Victoria de K_73 por abandono"]

1. d4 {[%clk 0:03:01.3]} 1... d5 {[%clk 0:02:58.1]} 2. c4 {[%clk 0:03:02.5]}
2... e6 {[%clk 0:02:59.3]} 3. g3 {[%clk 0:03:03.6]} 3... c6 {[%clk 0:03:00.4]}
4. Bg2 {[%clk 0:03:05]} 4... dxc4 {[%clk 0:03:01.6]} 5. Nf3 {[%clk 0:03:06.3]}
5... Nf6 {[%clk 0:03:00.2]} 6. O-O {[%clk 0:03:07.7]} 6... b5 {[%clk 0:02:58.7]}
7. a4 {[%clk 0:03:06.9]} 7... Bb4 {[%clk 0:02:57.6]} 8. Ne5 {[%clk 0:03:06.9]}
8... Bb7 {[%clk 0:02:51.4]} 9. axb5 {[%clk 0:03:06.9]} 9... Qd6 {[%clk 0:02:38]}
10. bxc6 {[%clk 0:03:05.7]} 10... Bxc6 {[%clk 0:02:38.4]} 11. Nxc6 {[%clk
0:03:03.2]} 11... Nxc6 {[%clk 0:02:40.3]} 12. Qa4 {[%clk 0:02:58.1]} 12... Rc8
{[%clk 0:02:24.6]} 13. Bf4 {[%clk 0:02:48.4]} 13... Qxd4 {[%clk 0:02:05]} 14.
Bxc6+ {[%clk 0:02:42.4]} 14... Rxc6 {[%clk 0:01:49.2]} 15. Qxc6+ {[%clk
0:02:38.3]} 15... Qd7 {[%clk 0:01:49.6]} 16. Qxd7+ {[%clk 0:02:34.9]} 16... Nxd7
{[%clk 0:01:51.5]} 17. Rxa7 {[%clk 0:02:31.3]} 17... e5 {[%clk 0:01:51.5]} 18.
Be3 {[%clk 0:02:28]} 18... Ke7 {[%clk 0:01:46.8]} 19. Rd1 {[%clk 0:02:24.4]}
19... Rd8 {[%clk 0:01:45.7]} 20. Nc3 {[%clk 0:02:24]} 20... Bxc3 {[%clk
0:01:45.3]} 21. bxc3 {[%clk 0:02:24.4]} 21... Ke6 {[%clk 0:01:47]} 22. f4 {[%clk
0:02:13.3]} 22... f6 {[%clk 0:01:46.1]} 23. Rc7 {[%clk 0:02:03.7]} 23... exf4
{[%clk 0:01:37.5]} 24. Bxf4 {[%clk 0:02:02]} 24... g5 {[%clk 0:01:38.5]} 25. Be3
{[%clk 0:01:50.5]} 25... Ke7 {[%clk 0:01:36.3]} 26. Rxc4 {[%clk 0:01:46]} 26...
Ne5 {[%clk 0:01:27.4]} 27. Rc7+ {[%clk 0:01:42.5]} 27... Nd7 {[%clk 0:01:27.3]}
28. c4 {[%clk 0:01:41.8]} 28... Ke6 {[%clk 0:01:26.4]} 29. c5 {[%clk 0:01:37.3]}
1

[Event "Open Nuevo Centro. Jornada 2"]
[Site "Chess.com"]
[Date "2020.06.26"]
[Round "5"]
[White "Sanchez Saez, Francisco"]
[Black "Campos Gambuti, Luis María"]
[Result "0-1"]
[WhiteElo "2288"]
[BlackElo "2416"]
[TimeControl "180+2"]
[EndTime "11:21:50 PDT"]
[Termination "Victoria de Tangalangafacv por abandono"]

1. e4 {[%clk 0:03:01.9]} 1... d5 {[%clk 0:02:59.3]} 2. exd5 {[%clk 0:03:02]}
2... Qxd5 {[%clk 0:03:01.2]} 3. Nc3 {[%clk 0:03:01.3]} 3... Qd6 {[%clk
0:03:02.1]} 4. d4 {[%clk 0:03:02.5]} 4... Nf6 {[%clk 0:03:03.3]} 5. Nf3 {[%clk
0:03:02.4]} 5... Nc6 {[%clk 0:03:04.3]} 6. g3 {[%clk 0:02:57.8]} 6... Bg4 {[%clk
0:03:04.4]} 7. Be3 {[%clk 0:02:18.8]} 7... O-O-O {[%clk 0:03:03.9]} 8. Bg2
{[%clk 0:02:08.2]} 8... e5 {[%clk 0:03:04.1]} 9. dxe5 {[%clk 0:01:33.6]} 9...
Nxe5 {[%clk 0:03:04.5]} 10. Qxd6 {[%clk 0:01:33.8]} 10... Nxf3+ {[%clk
0:03:02.9]} 11. Bxf3 {[%clk 0:01:32.6]} 11... Bxd6 {[%clk 0:03:04.8]} 12. Bxg4+
{[%clk 0:00:57.6]} 12... Nxg4 {[%clk 0:03:06.7]} 13. O-O {[%clk 0:00:58.8]}
13... Nxe3 {[%clk 0:03:03.5]} 14. fxe3 {[%clk 0:01:00.7]} 14... f6 {[%clk
0:03:02.2]} 15. Kg2 {[%clk 0:00:58.4]} 15... Be5 {[%clk 0:02:59.2]} 16. Rad1
{[%clk 0:00:51.5]} 16... Bxc3 {[%clk 0:02:56.2]} 17. bxc3 {[%clk 0:00:52.2]}
17... Rxd1 {[%clk 0:02:51]} 18. Rxd1 {[%clk 0:00:52.7]} 18... Re8 {[%clk
0:02:52.5]} 19. Kf3 {[%clk 0:00:52.3]} 19... Re5 {[%clk 0:02:53.9]} 20. Rd4
{[%clk 0:00:23.7]} 20... Rc5 {[%clk 0:02:53.2]} 21. c4 {[%clk 0:00:23.6]} 21...
Ra5 {[%clk 0:02:54.2]} 22. Rg4 {[%clk 0:00:21.4]} 22... g6 {[%clk 0:02:48.6]}
23. Rh4 {[%clk 0:00:21.4]} 23... h5 {[%clk 0:02:41.3]} 24. g4 {[%clk 0:00:19.5]}
24... hxg4+ {[%clk 0:02:39.1]} 25. Rxg4 {[%clk 0:00:13.9]} 25... g5 {[%clk
0:02:32.2]} 26. Ke4 {[%clk 0:00:10.7]} 26... f5+ {[%clk 0:02:32.1]} 0

[Event "Open Nuevo Centro. Jornada 2"]
[Site "Chess.com"]
[Date "2020.06.26"]
[Round "5"]
[White "URSARIU, NIKOLAS VICTOR"]
[Black "Rausell Taberner, Diego"]
[Result "0-1"]
[WhiteElo "934"]
[BlackElo "577"]
[TimeControl "180+2"]
[EndTime "11:22:03 PDT"]
[Termination "Victoria de DieguinRau por jaque mate"]

1. e4 {[%clk 0:03:01.9]} 1... e5 {[%clk 0:02:58.8]} 2. Nf3 {[%clk 0:03:01.2]}
2... Nc6 {[%clk 0:02:57.7]} 3. Nc3 {[%clk 0:03:01.1]} 3... Nf6 {[%clk
0:02:57.5]} 4. d4 {[%clk 0:02:59.2]} 4... exd4 {[%clk 0:02:54.9]} 5. Nxd4 {[%clk
0:03:00]} 5... Bb4 {[%clk 0:02:44.2]} 6. Nxc6 {[%clk 0:02:59]} 6... bxc6 {[%clk
0:02:38.5]} 7. Bd3 {[%clk 0:02:56.9]} 7... d6 {[%clk 0:02:32.3]} 8. Bd2 {[%clk
0:02:54.1]} 8... O-O {[%clk 0:02:29.3]} 9. a3 {[%clk 0:02:53]} 9... Bg4 {[%clk
0:02:29.1]} 10. Qc1 {[%clk 0:02:43.5]} 10... Bc5 {[%clk 0:02:28.9]} 11. h3
{[%clk 0:02:40.9]} 11... Bh5 {[%clk 0:02:26.2]} 12. O-O {[%clk 0:02:37.8]} 12...
Bf3 {[%clk 0:02:23.5]} 13. gxf3 {[%clk 0:02:34]} 13... Nh5 {[%clk 0:02:17.5]}
14. Re1 {[%clk 0:02:17.6]} 14... Qd7 {[%clk 0:02:14.1]} 15. e5 {[%clk
0:02:06.2]} 15... Qxh3 {[%clk 0:02:13.4]} 16. Be4 {[%clk 0:01:39.9]} 16... d5
{[%clk 0:02:05.2]} 17. Nxd5 {[%clk 0:01:29.2]} 17... cxd5 {[%clk 0:02:01.8]} 18.
Bxd5 {[%clk 0:01:30.5]} 18... Rad8 {[%clk 0:02:00.3]} 19. Bc6 {[%clk 0:01:28.5]}
19... Bb6 {[%clk 0:01:50.1]} 20. Bb4 {[%clk 0:01:24.8]} 20... Qh4 {[%clk
0:01:43.1]} 21. Re2 {[%clk 0:01:12.9]} 21... Nf4 {[%clk 0:01:38.8]} 22. Rd2
{[%clk 0:01:06.4]} 22... Qg5+ {[%clk 0:01:27]} 23. Kf1 {[%clk 0:00:58.2]} 23...
Qg2+ {[%clk 0:01:25.7]} 24. Ke1 {[%clk 0:00:56.5]} 24... Qg1# {[%clk 0:01:26]}
0

[Event "Open Nuevo Centro. Jornada 2"]
[Site "Chess.com"]
[Date "2020.06.26"]
[Round "5"]
[White "Zakharash, Georgii"]
[Black "Torres Biosca, Roberto"]
[Result "1-0"]
[WhiteElo "1067"]
[BlackElo "704"]
[TimeControl "180+2"]
[EndTime "11:22:19 PDT"]
[Termination "Victoria de georgiizakharash por jaque mate"]

1. d4 {[%clk 0:02:56.8]} 1... d5 {[%clk 0:02:59.3]} 2. Nc3 {[%clk 0:02:51.6]}
2... Nc6 {[%clk 0:02:59]} 3. Bf4 {[%clk 0:02:46.9]} 3... b6 {[%clk 0:02:47.8]}
4. e3 {[%clk 0:02:08]} 4... Nb4 {[%clk 0:02:46.1]} 5. Nf3 {[%clk 0:02:06.6]}
5... Bf5 {[%clk 0:02:45]} 6. Rc1 {[%clk 0:01:54.2]} 6... e6 {[%clk 0:02:31.5]}
7. a3 {[%clk 0:01:53.6]} 7... Nc6 {[%clk 0:02:29.5]} 8. Bd3 {[%clk 0:01:52.6]}
8... Bxd3 {[%clk 0:02:29.2]} 9. Qxd3 {[%clk 0:01:54.5]} 9... Nf6 {[%clk
0:02:28.6]} 10. O-O {[%clk 0:01:53.3]} 10... Ng4 {[%clk 0:02:26.8]} 11. e4
{[%clk 0:01:48.5]} 11... Qf6 {[%clk 0:02:19.8]} 12. Bxc7 {[%clk 0:01:36.9]}
12... Rc8 {[%clk 0:02:15.9]} 13. Bg3 {[%clk 0:01:35]} 13... Qg6 {[%clk
0:01:57.9]} 14. Rfd1 {[%clk 0:01:27.7]} 14... dxe4 {[%clk 0:01:49.6]} 15. Qxe4
{[%clk 0:01:25.8]} 15... f5 {[%clk 0:01:45.7]} 16. Qe2 {[%clk 0:01:11.4]} 16...
Qh6 {[%clk 0:01:33]} 17. Re1 {[%clk 0:01:09.3]} 17... Nxd4 {[%clk 0:01:22.3]}
18. Nxd4 {[%clk 0:01:05.2]} 18... Qxh2+ {[%clk 0:01:22.6]} 19. Bxh2 {[%clk
0:01:04.2]} 19... Rc7 {[%clk 0:01:15]} 20. Qxe6+ {[%clk 0:01:02.4]} 20... Re7
{[%clk 0:01:12]} 21. Qc8+ {[%clk 0:00:59.6]} 21... Kf7 {[%clk 0:01:11.1]} 22.
Rxe7+ {[%clk 0:00:58.3]} 22... Kxe7 {[%clk 0:01:10]} 23. Nd5+ {[%clk 0:00:57.2]}
23... Kf7 {[%clk 0:01:09.5]} 24. Qe6# {[%clk 0:00:55.7]} 1

[Event "Open Nuevo Centro. Jornada 2"]
[Site "Chess.com"]
[Date "2020.06.26"]
[Round "5"]
[White "Denis Cazacu, Ioan"]
[Black "Martínez Carvajal, Juan Francisco"]
[Result "0-1"]
[WhiteElo "1396"]
[BlackElo "1755"]
[TimeControl "180+2"]
[EndTime "11:22:25 PDT"]
[Termination "Victoria de JuanFcoMtnezCarvajal por abandono"]

1. d4 {[%clk 0:03:01.9]} 1... Nf6 {[%clk 0:03:00.1]} 2. c4 {[%clk 0:03:03.3]}
2... e6 {[%clk 0:03:01.2]} 3. Nc3 {[%clk 0:03:04.4]} 3... Bb4 {[%clk 0:03:02.3]}
4. Bg5 {[%clk 0:03:02.6]} 4... c5 {[%clk 0:02:56.1]} 5. Nf3 {[%clk 0:02:59.3]}
5... Qa5 {[%clk 0:02:45.2]} 6. Bd2 {[%clk 0:02:51.7]} 6... Nc6 {[%clk
0:02:23.6]} 7. a3 {[%clk 0:02:51.3]} 7... Bxc3 {[%clk 0:02:17.9]} 8. Bxc3 {[%clk
0:02:51.7]} 8... Qc7 {[%clk 0:02:15.4]} 9. dxc5 {[%clk 0:02:49.5]} 9... O-O
{[%clk 0:01:54.6]} 10. Bxf6 {[%clk 0:02:49.8]} 10... gxf6 {[%clk 0:01:55.3]} 11.
e3 {[%clk 0:02:47.3]} 11... Ne5 {[%clk 0:01:53.1]} 12. Nxe5 {[%clk 0:02:35.1]}
12... Qxe5 {[%clk 0:01:54.1]} 13. Qg4+ {[%clk 0:02:35.1]} 13... Qg5 {[%clk
0:01:54.8]} 14. Qxg5+ {[%clk 0:02:35.8]} 14... fxg5 {[%clk 0:01:55.8]} 15. Bd3
{[%clk 0:02:33]} 15... b6 {[%clk 0:01:38.7]} 16. cxb6 {[%clk 0:02:29.3]} 16...
axb6 {[%clk 0:01:39.8]} 17. h4 {[%clk 0:02:30]} 17... g4 {[%clk 0:01:37.9]} 18.
Be2 {[%clk 0:02:29.5]} 18... h5 {[%clk 0:01:32.6]} 19. f3 {[%clk 0:02:30]} 19...
f5 {[%clk 0:01:31.6]} 20. e4 {[%clk 0:02:29.5]} 20... Ba6 {[%clk 0:01:23]} 21.
exf5 {[%clk 0:02:21.3]} 21... exf5 {[%clk 0:01:23.4]} 22. b4 {[%clk 0:02:19.1]}
22... Rfe8 {[%clk 0:01:21]} 23. Kd2 {[%clk 0:02:17.4]} 23... d5 {[%clk
0:01:12.2]} 24. b5 {[%clk 0:02:16.5]} 24... Bb7 {[%clk 0:01:12.7]} 25. fxg4
{[%clk 0:02:14.5]} 25... hxg4 {[%clk 0:01:11.7]} 26. g3 {[%clk 0:02:13.8]} 26...
Rad8 {[%clk 0:01:08]} 27. cxd5 {[%clk 0:01:52.4]} 27... Rxd5+ {[%clk 0:01:05.1]}
28. Bd3 {[%clk 0:01:52.6]} 28... Red8 {[%clk 0:01:01.9]} 29. Rhf1 {[%clk
0:01:45.8]} 29... Rxd3+ {[%clk 0:01:02]} 30. Kc2 {[%clk 0:01:46.9]} 30... Be4
{[%clk 0:00:50.4]} 31. Kb2 {[%clk 0:01:47.9]} 31... Rxg3 {[%clk 0:00:45]} 0

[Event "Open Nuevo Centro. Jornada 2"]
[Site "Chess.com"]
[Date "2020.06.26"]
[Round "5"]
[White "Gutierrez Marco, Dario"]
[Black "Macias Pino, Diego"]
[Result "0-1"]
[WhiteElo "1908"]
[BlackElo "2204"]
[TimeControl "180+2"]
[EndTime "11:22:35 PDT"]
[Termination "Victoria de jesuimafe por jaque mate"]

1. e4 {[%clk 0:03:01.7]} 1... c6 {[%clk 0:02:59.6]} 2. d4 {[%clk 0:03:02.2]}
2... d5 {[%clk 0:03:01.5]} 3. e5 {[%clk 0:03:03.5]} 3... c5 {[%clk 0:02:50.4]}
4. c3 {[%clk 0:03:00.1]} 4... cxd4 {[%clk 0:02:50.2]} 5. cxd4 {[%clk 0:03:01.3]}
5... Nc6 {[%clk 0:02:52.1]} 6. Nf3 {[%clk 0:03:00.8]} 6... Bg4 {[%clk
0:02:52.3]} 7. Be2 {[%clk 0:02:52.4]} 7... e6 {[%clk 0:02:52.5]} 8. O-O {[%clk
0:02:45]} 8... Nge7 {[%clk 0:02:30.7]} 9. Be3 {[%clk 0:02:40]} 9... Nf5 {[%clk
0:02:25]} 10. a3 {[%clk 0:02:38.5]} 10... Be7 {[%clk 0:02:17.4]} 11. b4 {[%clk
0:02:38.5]} 11... a6 {[%clk 0:02:17.7]} 12. h3 {[%clk 0:02:35.8]} 12... Bxf3
{[%clk 0:02:17.6]} 13. Bxf3 {[%clk 0:02:37.7]} 13... Qb6 {[%clk 0:02:17.9]} 14.
Nc3 {[%clk 0:02:35.4]} 14... Ncxd4 {[%clk 0:02:01.6]} 15. Na4 {[%clk 0:02:31.2]}
15... Qa7 {[%clk 0:01:33.3]} 16. Rc1 {[%clk 0:02:18.1]} 16... Nxe3 {[%clk
0:01:32.2]} 17. fxe3 {[%clk 0:02:20]} 17... Nf5 {[%clk 0:01:32.1]} 18. Rf2
{[%clk 0:02:07.2]} 18... Bg5 {[%clk 0:01:29.5]} 19. Nc5 {[%clk 0:01:47.5]} 19...
Bxe3 {[%clk 0:01:29]} 20. Rc2 {[%clk 0:01:43.2]} 20... O-O {[%clk 0:01:29]} 21.
Bg4 {[%clk 0:01:42.6]} 21... Bxf2+ {[%clk 0:01:25.2]} 22. Rxf2 {[%clk
0:01:41.9]} 22... b6 {[%clk 0:01:25.1]} 23. Nd3 {[%clk 0:01:34.6]} 23... Ne3
{[%clk 0:01:23.5]} 24. Qf3 {[%clk 0:01:33.6]} 24... Nxg4 {[%clk 0:01:24.6]} 25.
Qxg4 {[%clk 0:01:35.5]} 25... Rac8 {[%clk 0:01:24.3]} 26. h4 {[%clk 0:01:33.4]}
26... Rc4 {[%clk 0:01:20]} 27. Nf4 {[%clk 0:01:32.9]} 27... b5 {[%clk 0:01:17]}
28. h5 {[%clk 0:01:34]} 28... Rc1+ {[%clk 0:00:51.4]} 29. Kh2 {[%clk 0:01:34.7]}
29... Qxf2 {[%clk 0:00:52.7]} 30. h6 {[%clk 0:01:34.5]} 30... Qg1+ {[%clk
0:00:52.7]} 31. Kh3 {[%clk 0:01:31]} 31... Rc3+ {[%clk 0:00:53.2]} 32. Kh4
{[%clk 0:01:28.6]} 32... Qh2+ {[%clk 0:00:54]} 33. Kg5 {[%clk 0:01:29.9]} 33...
Qxh6# {[%clk 0:00:54.2]} 0

[Event "Open Nuevo Centro. Jornada 2"]
[Site "Chess.com"]
[Date "2020.06.26"]
[Round "5"]
[White "Pardo Ruiz, Carlos"]
[Black "Saiz Sapena, Veronica"]
[Result "1-0"]
[WhiteElo "1844"]
[BlackElo "1550"]
[TimeControl "180+2"]
[EndTime "11:22:54 PDT"]
[Termination "Victoria de Carlitoscarlsen por abandono"]

1. e4 {[%clk 0:03:01.9]} 1... c6 {[%clk 0:02:59]} 2. d4 {[%clk 0:03:01.8]} 2...
d5 {[%clk 0:02:55.8]} 3. exd5 {[%clk 0:03:03.7]} 3... cxd5 {[%clk 0:02:55.7]} 4.
Bd3 {[%clk 0:03:04.3]} 4... Nc6 {[%clk 0:02:56.3]} 5. c3 {[%clk 0:03:04.8]} 5...
Nf6 {[%clk 0:02:56.7]} 6. h3 {[%clk 0:03:05.3]} 6... a6 {[%clk 0:02:56.2]} 7.
Nf3 {[%clk 0:03:05.3]} 7... e6 {[%clk 0:02:56.7]} 8. O-O {[%clk 0:03:05.8]} 8...
Be7 {[%clk 0:02:57.3]} 9. Bf4 {[%clk 0:03:06.1]} 9... b5 {[%clk 0:02:53.1]} 10.
Re1 {[%clk 0:03:04.9]} 10... O-O {[%clk 0:02:52.6]} 11. Ne5 {[%clk 0:03:04.4]}
11... Nxe5 {[%clk 0:02:51.1]} 12. Bxe5 {[%clk 0:02:59.4]} 12... Bb7 {[%clk
0:02:48.6]} 13. Qf3 {[%clk 0:02:47.7]} 13... Qb6 {[%clk 0:02:47.2]} 14. Qg3
{[%clk 0:02:44.3]} 14... h6 {[%clk 0:02:28.8]} 15. Nd2 {[%clk 0:02:27.9]} 15...
Kh8 {[%clk 0:02:21.5]} 16. Nf3 {[%clk 0:02:11.1]} 16... Nh5 {[%clk 0:02:19.8]}
17. Qg4 {[%clk 0:02:01.8]} 17... Nf6 {[%clk 0:02:20.3]} 18. Bxf6 {[%clk
0:02:02.6]} 18... Bxf6 {[%clk 0:02:20.3]} 19. Nh4 {[%clk 0:01:47.3]} 19... Bxh4
{[%clk 0:02:11.1]} 20. Qxh4 {[%clk 0:01:48]} 20... Qd8 {[%clk 0:02:11]} 21. Qf4
{[%clk 0:01:46.4]} 21... Bc8 {[%clk 0:02:00.6]} 22. Re3 {[%clk 0:01:40.9]} 22...
f5 {[%clk 0:01:54.2]} 23. Rg3 {[%clk 0:01:38.9]} 23... Rf6 {[%clk 0:01:50.8]}
24. Qe5 {[%clk 0:01:32.6]} 24... Qf8 {[%clk 0:01:45]} 25. Re1 {[%clk 0:01:24.4]}
25... Kh7 {[%clk 0:01:43.5]} 26. Qc7 {[%clk 0:01:19.4]} 26... h5 {[%clk
0:01:31]} 27. Rg5 {[%clk 0:01:10.2]} 27... Rh6 {[%clk 0:01:16.2]} 28. Qc6 {[%clk
0:00:59.2]} 28... Kh8 {[%clk 0:01:00.3]} 29. Qxa8 {[%clk 0:00:58.4]} 29... Bd7
{[%clk 0:00:57.7]} 30. Qxf8+ {[%clk 0:00:58.2]} 1

[Event "Open Nuevo Centro. Jornada 2"]
[Site "Chess.com"]
[Date "2020.06.26"]
[Round "5"]
[White "Lopez Mateo, Juan Carlos"]
[Black "Castellano López, Javier"]
[Result "1-0"]
[WhiteElo "1999"]
[BlackElo "1800"]
[TimeControl "180+2"]
[EndTime "11:23:06 PDT"]
[Termination "Victoria de Tarantantinov por jaque mate"]

1. e4 {[%clk 0:03:01.9]} 1... c6 {[%clk 0:02:59.7]} 2. Ne2 {[%clk 0:02:59.5]}
2... d5 {[%clk 0:02:56.6]} 3. e5 {[%clk 0:03:00.3]} 3... Bf5 {[%clk 0:02:54.9]}
4. Ng3 {[%clk 0:02:59.6]} 4... Bg6 {[%clk 0:02:55.1]} 5. h4 {[%clk 0:03:01.1]}
5... h5 {[%clk 0:02:55.6]} 6. e6 {[%clk 0:03:00.2]} 6... Nf6 {[%clk 0:02:51]} 7.
d4 {[%clk 0:02:52.4]} 7... Qd6 {[%clk 0:02:50.4]} 8. exf7+ {[%clk 0:02:50.8]}
8... Bxf7 {[%clk 0:02:52.3]} 9. Nd2 {[%clk 0:02:37.2]} 9... Nbd7 {[%clk
0:02:48.5]} 10. Nf3 {[%clk 0:02:34.2]} 10... O-O-O {[%clk 0:02:40.3]} 11. Ng5
{[%clk 0:02:26.3]} 11... Bg6 {[%clk 0:02:33.9]} 12. Bd3 {[%clk 0:02:20.4]} 12...
Be8 {[%clk 0:02:06.6]} 13. O-O {[%clk 0:01:57.1]} 13... e5 {[%clk 0:01:54.8]}
14. Bf5 {[%clk 0:01:48.4]} 14... e4 {[%clk 0:01:42.9]} 15. c4 {[%clk 0:01:37.5]}
15... g6 {[%clk 0:01:42.5]} 16. c5 {[%clk 0:01:32.6]} 16... Qe7 {[%clk
0:01:22.3]} 17. Bh3 {[%clk 0:01:19.8]} 17... Bf7 {[%clk 0:01:20.9]} 18. Bf4
{[%clk 0:01:16.6]} 18... Bh6 {[%clk 0:01:15.7]} 19. Bd6 {[%clk 0:01:10.7]} 19...
Qe8 {[%clk 0:01:09.4]} 20. Qa4 {[%clk 0:01:06.6]} 20... Bxg5 {[%clk 0:00:11.6]}
21. Qa5 {[%clk 0:00:55.9]} 21... b6 {[%clk 0:00:08.5]} 22. Qa6# {[%clk
0:00:54.8]} 1

[Event "Open Nuevo Centro. Jornada 2"]
[Site "Chess.com"]
[Date "2020.06.26"]
[Round "5"]
[White "Randazzo, Adrián"]
[Black "Remolar Gallen, Jose"]
[Result "1-0"]
[WhiteElo "2478"]
[BlackElo "2353"]
[TimeControl "180+2"]
[EndTime "11:23:25 PDT"]
[Termination "Victoria de Nikithebest por tiempo"]

1. e4 {[%clk 0:03:01.9]} 1... d6 {[%clk 0:03:01.2]} 2. d4 {[%clk 0:03:02.6]}
2... Nf6 {[%clk 0:03:01.6]} 3. Nc3 {[%clk 0:03:03.2]} 3... g6 {[%clk 0:03:02.6]}
4. Bf4 {[%clk 0:03:02.9]} 4... c5 {[%clk 0:02:55.3]} 5. dxc5 {[%clk 0:03:01.9]}
5... Qa5 {[%clk 0:02:55.4]} 6. Bb5+ {[%clk 0:02:57.5]} 6... Bd7 {[%clk
0:02:49.3]} 7. Qd3 {[%clk 0:02:53.6]} 7... Nc6 {[%clk 0:02:21.8]} 8. cxd6 {[%clk
0:02:45.7]} 8... exd6 {[%clk 0:02:05.5]} 9. Nf3 {[%clk 0:02:41.6]} 9... O-O-O
{[%clk 0:01:44.4]} 10. O-O-O {[%clk 0:02:41.9]} 10... Nh5 {[%clk 0:00:59.3]} 11.
Be3 {[%clk 0:02:27.5]} 11... Bg7 {[%clk 0:00:55.7]} 12. Nd4 {[%clk 0:02:16.3]}
12... Nf4 {[%clk 0:00:13.3]} 13. Qc4 {[%clk 0:01:43]} 13... Ne6 {[%clk
0:00:05.3]} 14. Nxc6 {[%clk 0:01:40.5]} 14... bxc6 {[%clk 0:00:05.8]} 15. Bxc6
{[%clk 0:01:41.4]} 15... Bxc3 {[%clk 0:00:02.8]} 16. Bd5+ {[%clk 0:01:30.9]}
16... Qc7 {[%clk 0:00:03.3]} 17. Qxc7+ {[%clk 0:01:12.8]} 17... Kxc7 {[%clk
0:00:05.2]} 18. bxc3 {[%clk 0:01:14.1]} 18... a5 {[%clk 0:00:03.8]} 19. c4
{[%clk 0:01:13.6]} 19... Rb8 {[%clk 0:00:02.4]} 20. f4 {[%clk 0:01:10.7]} 20...
a4 {[%clk 0:00:02.9]} 21. f5 {[%clk 0:01:08.8]} 21... gxf5 {[%clk 0:00:03.6]}
22. exf5 {[%clk 0:01:10.7]} 22... Nc5 {[%clk 0:00:05.3]} 23. Bf4 {[%clk
0:01:09]} 23... Bxf5 {[%clk 0:00:05]} 24. Bxf7 {[%clk 0:01:06.1]} 24... Rb6
{[%clk 0:00:06]} 25. Rd5 {[%clk 0:01:03.9]} 1